Workbook

Sheet 113年
A1: 113年本會辦理教育訓練性別比例一覽表
G2: 表13
A3: 演講日期 | B3: 演講主題 | C3: 參加人數
C4: 總人數 | D4: 男 | E4: 比例 | F4: 女 | G4: 比例
A5: 113年3月13日 | B5: 媒體溝通與新聞稿撰寫實戰專題講座 | C5: 51 | D5: 30 | E5: =D5/C5 -> 58.82% | F5: 21 | G5: =F5/C5 -> 41.18%
A6: 113年3月20日 | B6: 113年經費結報系統教育訓練課程 | C6: 7 | D6: 4 | E6: =D6/C6 -> 57.14% | F6: 3 | G6: =F6/C6 -> 42.86%
A7: 113年5月28日 | B7: EAP理財講座：以終為始的退休規劃 | C7: 79 | D7: 40 | E7: 50.63% | F7: 39 | G7: 49.37%
A8: 113年5月31日 | B8: 性平訓練「迷失安狄」性平電影院 | C8: 124 | D8: 54 | E8: 43.55% | F8: 70 | G8: 56.45%
A9: 113年6月18日 | B9: 113年度第1次資通安全教育訓練：看清網路詐騙手法，教您防詐密招 | C9: 121 | D9: 63 | E9: 52.07% | F9: 58 | G9: 47.93%
A10: 113年6月28日 | B10: 113年度資訊人員資通安全教育訓練：個資外洩與暗網情蒐、AI在資安上的運用 | C10: 8 | D10: 5 | E10: 62.50% | F10: 3 | G10: 37.50%
A11: 113年7月5日 | B11: 近期公共工程品質管理及工程管理重要措施 | C11: 60 | D11: 32 | E11: 53.33% | F11: 28 | G11: 46.67%
A12: 113年7月19日 | B12: EAP法律講座：職場不法侵害，以職場性騷擾為中心 | C12: 111 | D12: 49 | E12: 44.14% | F12: 62 | G12: 55.86%
A13: 113年7月30日 | B13: 新進人員講習教育訓練 | C13: 24 | D13: 13 | E13: 54.17% | F13: 11 | G13: 45.83%
A14: 113年8月1日 | B14: 規劃設計監造階段工程技術專題 | C14: 16 | D14: 9 | E14: 56.25% | F14: 7 | G14: 43.75%
A15: 113年8月9日 | B15: 新聞判斷與新聞寫作課程 | C15: 52 | D15: 31 | E15: 59.62% | F15: 21 | G15: 40.38%
A16: 113年8月30日 | B16: 113年度性平暨兩公約、ICERD教育訓練：「虎紋少女」影片欣賞暨座談 | C16: 119 | D16: 58 | E16: 48.74% | F16: 61 | G16: 51.26%
A17: 113年9月4日 | B17: EAP身心健康講座：掌握情緒與壓力，提升工作效能的關鍵 | C17: 96 | D17: 39 | E17: 40.63% | F17: 57 | G17: 59.38%
A18: 113年9月11日 | B18: 環境教育參訪 | C18: 79 | D18: 41 | E18: 51.90% | F18: 38 | G18: 48.10%
A19: 113年9月18日 | B19: 環境教育參訪 | C19: 60 | D19: 29 | E19: 48.33% | F19: 31 | G19: 51.67%
A20: 113年9月19日 | B20: 113年度第2次資通安全教育訓練：您的個資如何在暗網買賣、保護您的電腦及手機安全實務 | C20: 134 | D20: 57 | E20: 42.54% | F20: 77 | G20: 57.46%
A21: 113年10月17日 | B21: 113年度全民國防暨性平教育訓練「花木蘭」影片欣賞暨座談 | C21: 120 | D21: 57 | E21: 47.50% | F21: 63 | G21: 52.50%
A22: 113年11月12日 | B22: 數位科技在政府採購審計之應用 | C22: 43 | D22: 27 | E22: 62.79% | F22: 16 | G22: 37.21%
A23: 113年12月5日 | B23: 113年度第3次資通安全教育訓練：看清網路詐騙手法，教您防詐密招 | C23: 46 | D23: 32 | E23: 69.57% | F23: 14 | G23: 30.43%
A24: 113年12月27日 | B24: 113年度ODF教育訓練 | C24: 220 | D24: 122 | E24: 55.45% | F24: 98 | G24: 44.55%
A25: 資料來源：人事室
A26: 備註： 1.性別資料使用：因本會業務性質為政府採購與公共工程業務之督導協調，須進用具工程、土木、水利、經建等專業背景人員，以目前工程專業人員仍以男性居多，又上開訓練係包含全會各種訓練課程（含業務訓練及管理訓練），爰參訓人員人數較不固定。 2.應用深化：上開統計可作為本會每年度規劃訓練課程及邀請同仁參訓之參考。 3.未進行國際性別統計比較原因說明：茲考量其他國家政府組織型態、功能任務迥異，爰未能就與本會業務性質與角色功能完全相同之國外政府機關進行國際比較。

Sheet 112年
A1: 112年本會辦理教育訓練性別比例一覽表
G2: 表13
A3: 演講日期 | B3: 演講主題 | C3: 參加人數
C4: 總人數 | D4: 男 | E4: 比例 | F4: 女 | G4: 比例
A5: 112年4月12日 | B5: 112年新進人員講習 | C5: 15 | D5: 9 | E5: =D5/C5 -> 60.00% | F5: 6 | G5: =F5/C5 -> 40.00%
A6: 112年4月14日 | B6: 112年經費結報系統教育訓練 | C6: 23 | D6: 9 | E6: =D6/C6 -> 39.13% | F6: 14 | G6: =F6/C6 -> 60.87%
A7: 112年5月10日 | B7: 112年性別主流化(CEDAW)電影院-厭世媽咪日記 | C7: 135 | D7: 58 | E7: 42.96% | F7: 77 | G7: 57.04%
A8: 112年5月16日 | B8: 性平初階課程「同志權益保障」 | C8: 100 | D8: 48 | E8: 48.00% | F8: 52 | G8: 52.00%
A9: 112年5月16日 | B9: EAP健康專題講座-淺談暈眩與壓力因應 | C9: 100 | D9: 48 | E9: 48.00% | F9: 52 | G9: 52.00%
A10: 112年5月24日 | B10: 112年度第1次資通安全教育訓練-個資風險因應之道 | C10: 148 | D10: 72 | E10: 48.65% | F10: 76 | G10: 51.35%
A11: 112年6月28日 | B11: 112年度性騷擾防治宣導(主管) | C11: 44 | D11: 32 | E11: 72.73% | F11: 12 | G11: 27.27%
A12: 112年7月4日 | B12: 112年度性騷擾防治宣導 | C12: 121 | D12: 57 | E12: 47.11% | F12: 64 | G12: 52.89%
A13: 112年7月7日 | B13: 112年度性騷擾防治宣導 | C13: 34 | D13: 19 | E13: 55.88% | F13: 15 | G13: 44.12%
A14: 112年7月15日 | B14: 環境教育參訪 | C14: 48 | D14: 22 | E14: 45.83% | F14: 26 | G14: 54.17%
A15: 112年7月28日 | B15: 112年度性騷擾防治專題演講 | C15: 93 | D15: 50 | E15: 53.76% | F15: 43 | G15: 46.24%
A16: 112年9月20日 | B16: EAP專題講座：壓力紓解課程「職場平衡之道：工作、生活、和你」 | C16: 64 | D16: 26 | E16: 40.63% | F16: 38 | G16: 59.38%
A17: 112年9月21日 | B17: 法令之原理原則與解釋適用 | C17: 73 | D17: 36 | E17: 49.32% | F17: 37 | G17: 50.68%
A18: 112年9月26日 | B18: 112年度第2次資通安全教育訓練「資安威脅衍生的風險與因應、社交工程防護實務」 | C18: 103 | D18: 47 | E18: 45.63% | F18: 56 | G18: 54.37%
A19: 112年10月11日 | B19: 112年度性平暨兩公約（人權）教育訓練 | C19: 97 | D19: 45 | E19: 46.39% | F19: 52 | G19: 53.61%
A20: 112年10月20日 | B20: 112年度全民國防教育訓練 | C20: 102 | D20: 48 | E20: 47.06% | F20: 54 | G20: 52.94%
A21: 112年11月9日 | B21: 112年度第3次資通安全教育訓練「資安威脅衍生的風險與因應、社交工程防護實務」 | C21: 43 | D21: 23 | E21: 53.49% | F21: 20 | G21: 46.51%
A22: 112年11月15日 | B22: EAP專題講座：員工溝通協調暨職涯輔導課程 | C22: 70 | D22: 34 | E22: 48.57% | F22: 36 | G22: 51.43%
A23: 112年12月28日 | B23: 112年度ODF教育訓練 | C23: 113 | D23: 66 | E23: 58.41% | F23: 47 | G23: 41.59%
A24: 112年12月29日 | B24: 112年度ODF教育訓練 | C24: 8 | D24: 5 | E24: 62.50% | F24: 3 | G24: 37.50%
A25: 資料來源：人事室
A26: 備註： 1.性別資料使用：因本會業務性質為政府採購與公共工程業務之督導協調，須進用具工程、土木、水利、經建等專業背景人員，以目前工程專業人員仍以男性居多，又上開訓練係包含全會各種訓練課程（含業務訓練及管理訓練），爰參訓人員人數較不固定。 2.應用深化：上開統計可作為本會每年度規劃訓練課程及邀請同仁參訓之參考。 3.未進行國際性別統計比較原因說明：茲考量其他國家政府組織型態、功能任務迥異，爰未能就與本會業務性質與角色功能完全相同之國外政府機關進行國際比較。

Sheet 111年
A1: 111年本會辦理教育訓練性別比例一覽表
G2: 表13
A3: 演講日期 | B3: 演講主題 | C3: 參加人數
C4: 總人數 | D4: 男 | E4: 比例 | F4: 女 | G4: 比例
A5: 111年3月29日 | B5: 經費結報系統-機關同仁報支項目申請及設定操作 | C5: 24 | D5: 8 | E5: =SUM(D5/C5) -> 33.33% | F5: 16 | G5: =SUM(F5/C5) -> 66.67%
A6: 111年3月30日 | B6: 品質與查核二三事 | C6: 41 | D6: 27 | E6: 65.85% | F6: 14 | G6: 34.15%
A7: 111年3月30日 | B7: 新進人員講習 | C7: 17 | D7: 6 | E7: 35.29% | F7: 11 | G7: 64.71%
A8: 111年4月27日 | B8: 臺9線蘇花公路山區路段改善計畫工程碳管理經驗分享及展望 | C8: 70 | D8: 42 | E8: 60.00% | F8: 28 | G8: 40.00%
A9: 111年4月28日 | B9: 性別主流化教育訓練「花漾女子」影片欣賞暨座談會 | C9: 79 | D9: 45 | E9: 56.96% | F9: 34 | G9: 43.04%
A10: 111年5月9日 | B10: EAP身心健康關懷講座「防疫及提升免疫力」 | C10: 65 | D10: 33 | E10: 50.77% | F10: 32 | G10: 49.23%
A11: 111年5月26日 | B11: 111年度第1次資通安全教育訓練 | C11: 78 | D11: 40 | E11: 51.28% | F11: 38 | G11: 48.72%
A12: 111年7月18日 | B12: 導入經費結報系統-出納單位報支項目申請及設定操作 | C12: 10 | D12: 2 | E12: 20.00% | F12: 8 | G12: 80.00%
A13: 111年7月27日 | B13: 「公共工程品質管理訓練班」品質(監造)計畫習作審查案例說明會 | C13: 13 | D13: 12 | E13: 92.31% | F13: 1 | G13: 7.69%
A14: 111年8月3日 | B14: EAP講座-直球面對職家壓力，掌握舒活人生要訣 | C14: 82 | D14: 38 | E14: 46.34% | F14: 44 | G14: 53.66%
A15: 111年8月18日 | B15: 生態檢核落實情形及案例分享 | C15: 70 | D15: 64 | E15: 91.43% | F15: 6 | G15: 8.57%
A16: 111年8月23日 | B16: 工程基礎攝影與構圖技巧 | C16: 64 | D16: 42 | E16: =SUM(D16/C16) -> 65.63% | F16: 22 | G16: =SUM(F16/C16) -> 34.38%
A17: 111年9月6日 | B17: 111年度ODF教育訓練 | C17: 172 | D17: 96 | E17: =SUM(D17/C17) -> 55.81% | F17: 76 | G17: =SUM(F17/C17) -> 44.19%
A18: 111年9月15日 | B18: 政府組態基準及AD安全威脅與防護方案 | C18: 9 | D18: 8 | E18: =SUM(D18/C18) -> 88.89% | F18: 1 | G18: =SUM(F18/C18) -> 11.11%
A19: 111年10月1日 | B19: 111年度文康聯誼暨環境教育訓練 | C19: 19 | D19: 9 | E19: =SUM(D19/C19) -> 47.37% | F19: 10 | G19: =SUM(F19/C19) -> 52.63%
A20: 111年10月5日 | B20: EAP專題講座「性別好友善，溝通更順暢」 | C20: 89 | D20: 41 | E20: =SUM(D20/C20) -> 46.07% | F20: 48 | G20: =SUM(F20/C20) -> 53.93%
A21: 111年10月6日 | B21: 性平、兩公約暨身障者權利公約教育訓練(「無聲」影片欣賞) | C21: 71 | D21: 29 | E21: 40.85% | F21: 42 | G21: 59.15%
A22: 111年10月18日 | B22: 111年度第2次資通安全教育訓練 | C22: 124 | D22: 69 | E22: 55.65% | F22: 55 | G22: 44.35%
A23: 111年10月19日 | B23: 全民國防教育訓練-「鋼鐵勳章」影片欣賞 | C23: 115 | D23: 58 | E23: 50.43% | F23: 57 | G23: 49.57%
A24: 111年10月19日 | B24: 行政中立教育訓練 | C24: 115 | D24: 58 | E24: =SUM(D24/C24) -> 50.43% | F24: 58 | G24: =SUM(F24/C24) -> 50.43%
A25: 資料來源：人事室
A26: 備註： 1.性別資料使用：因本會業務性質為政府採購與公共工程業務之督導協調，須進用具工程、土木、水利、經建等專業背景人員，以目前工程專業人員仍以男性居多，又上開訓練係包含全會各種訓練課程（含業務訓練及管理訓練），爰參訓人員人數較不固定。 2.應用深化：上開統計可作為本會每年度規劃訓練課程及邀請同仁參訓之參考。 3.未進行國際性別統計比較原因說明：茲考量其他國家政府組織型態、功能任務迥異，爰未能就與本會業務性質與角色功能完全相同之國外政府機關進行國際比較。

Sheet 110年
A1: 110年本會辦理教育訓練性別比例一覽表
G2: 表13
A3: 演講日期 | B3: 演講主題 | C3: 參加人數
C4: 總人數 | D4: 男 | E4: 比例 | F4: 女 | G4: 比例
A5: 110年2月19日 | B5: 依法行政積極作為案例分享讀書會 | C5: 60 | D5: 39 | E5: =SUM(D5/C5) -> 65.00% | F5: 21 | G5: =SUM(F5/C5) -> 35.00%
A6: 110年3月19日 | B6: 新進人員講習 | C6: 21 | D6: 14 | E6: 66.67% | F6: 7 | G6: 33.33%
A7: 110年4月7日 | B7: 資訊資產盤點暨資通系統分級及防護基準 | C7: 18 | D7: =SUM(C7-F7) -> 15 | E7: 83.33% | F7: 3 | G7: 16.67%
A8: 110年4月12日 | B8: 性別主流化教育訓練「影片欣賞暨座談會」 | C8: 62 | D8: 34 | E8: 54.84% | F8: 28 | G8: 45.16%
A9: 110年4月15日 | B9: 資通安全教育訓練(第1次) | C9: 37 | D9: =SUM(C9-F9) -> 22 | E9: 59.46% | F9: 15 | G9: 40.54%
A10: 110年8月17日 | B10: 全民國防教育訓練-影片欣賞座談 | C10: 45 | D10: 22 | E10: 48.89% | F10: 23 | G10: 51.11%
A11: 110年8月17日 | B11: 「兩公約（人權）教育訓練」影片欣賞座談 | C11: 45 | D11: 22 | E11: 48.89% | F11: 23 | G11: 51.11%
A12: 110年9月16日 | B12: 環境教育影片欣賞「明日進行曲」 | C12: 129 | D12: 59 | E12: 45.74% | F12: 70 | G12: 54.26%
A13: 110年9月17日 | B13: 全民國防教育訓練影片欣賞 | C13: 90 | D13: 53 | E13: =SUM(D13/C13) -> 58.89% | F13: 37 | G13: =SUM(F13/C13) -> 41.11%
A14: 110年9月17日 | B14: 人權教育訓練影片欣賞 | C14: 90 | D14: 53 | E14: =SUM(D14/C14) -> 58.89% | F14: 37 | G14: =SUM(F14/C14) -> 41.11%
A15: 110年9月24日 | B15: 提升政策規劃與業務說明能力 | C15: 49 | D15: 27 | E15: =SUM(D15/C15) -> 55.10% | F15: 22 | G15: =SUM(F15/C15) -> 44.90%
A16: 110年9月30日 | B16: 性別主流化及CEDAW教育訓練 | C16: 121 | D16: 65 | E16: =SUM(D16/C16) -> 53.72% | F16: 56 | G16: =SUM(F16/C16) -> 46.28%
A17: 110年10月4日 | B17: 卓越簡報的關鍵要素 | C17: 37 | D17: 19 | E17: 51.35% | F17: 18 | G17: 48.65%
A18: 110年10月5日 | B18: 資通安全教育訓練(第2次) | C18: 122 | D18: 66 | E18: 54.10% | F18: 56 | G18: 45.90%
A19: 110年10月25日 | B19: 認識跨性別者及其處境 | C19: 74 | D19: 34 | E19: =SUM(D19/C19) -> 45.95% | F19: 40 | G19: =SUM(F19/C19) -> 54.05%
A20: 110年12月13日 | B20: 資訊小組資通安全教育訓練(數位學習) | C20: 44 | D20: 27 | E20: 61.36% | F20: 17 | G20: 38.64%
A21: 110年12月21日 | B21: 「行政中立暨公務倫理及利益衝突迴避」教育訓練 | C21: 122 | D21: 62 | E21: 50.82% | F21: 60 | G21: 49.18%
A22: 資料來源：人事室
A23: 備註： 1.性別資料使用：因本會業務性質為政府採購與公共工程業務之督導協調，須進用具工程、土木、水利、經建等專業背景人員，以目前工程專業人員仍以男性居多，又上開訓練係包含全會各種訓練課程（含業務訓練及管理訓練），爰參訓人員人數較不固定。 2.應用深化：上開統計可作為本會每年度規劃訓練課程及邀請同仁參訓之參考。 3.未進行國際性別統計比較原因說明：茲考量其他國家政府組織型態、功能任務迥異，爰未能就與本會業務性質與角色功能完全相同之國外政府機關進行國際比較。

Sheet 109年
A1: 109年本會辦理教育訓練性別比例一覽表
G2: 表13
A3: 演講日期 | B3: 演講主題 | C3: 參加人數 | H3: 性平課程 | I3: 男 | J3: 女
C4: 總人數 | D4: 男 | E4: 比例 | F4: 女 | G4: 比例 | H4: =SUM(H5:H22) -> 112 | I4: =SUM(I5:I22) -> 62 | J4: =SUM(J5:J22) -> 50
A5: 109年1月15日 | B5: 政府採購法暨相關子法修正說明 | C5: 70 | D5: =SUM(C5-F5) -> 37 | E5: =SUM(D5/C5) -> 52.86% | F5: 33 | G5: =SUM(F5/C5) -> 47.14%
A6: 109年3月3日 | B6: 管理訓練-EAP身心健康講座「食品安全 無毒生活」 | C6: 78 | D6: 43 | E6: 55.13% | F6: 35 | G6: 44.87%
A7: 109年6月18日 | B7: 管理訓練-EAP主管實務訓練工作坊 | C7: 13 | D7: 8 | E7: 61.54% | F7: 5 | G7: 38.46%
A8: 109年7月15日 | B8: 兩公約、身心障礙者權利公約、廉政影片宣導 | C8: 74 | D8: 41 | E8: 55.41% | F8: 33 | G8: 44.59%
A9: 109年8月4日 | B9: 公共工程計畫研擬相關法令介紹 | C9: 54 | D9: 37 | E9: 68.52% | F9: 17 | G9: 31.48%
A10: 109年8月13日 | B10: 管理訓練-EAP關懷員實務工作坊 | C10: 13 | D10: 5 | E10: 38.46% | F10: 8 | G10: 61.54%
A11: 109年8月24日 | B11: 專業核心訓練-大數據分析與應用 | C11: 51 | D11: 31 | E11: 60.78% | F11: 20 | G11: 39.22%
A12: 109年8月31日 | B12: 公共建設計畫列管與公共工程品質確保 | C12: 43 | D12: 26 | E12: 60.47% | F12: 17 | G12: 39.53%
A13: 109年9月7日 | B13: 兩公約、身心障礙者權利公約、廉政、性別平等、國防教育影片宣導 | C13: 58 | D13: 29 | E13: 50.00% | F13: 29 | G13: 50.00%
A14: 109年9月9日 | B14: 業務簡介及政府採購爭議處理機制 | C14: 16 | D14: 5 | E14: 31.25% | F14: 11 | G14: 68.75%
A15: 109年9月16日 | B15: 管理訓練-打造工程領域之多元包容性未來的挑戰與願景 | C15: 71 | D15: 37 | E15: 52.11% | F15: 34 | G15: 47.89% | H15: 35 | I15: 13 | J15: 22
A16: 109年10月29日 | B16: 工程技術鑑定之功能與作用暨案例解析 | C16: 22 | D16: 12 | E16: 54.55% | F16: 10 | G16: 45.45%
A17: 109年11月3日 | B17: 有效解決問題之態度與方法 | C17: 75 | D17: 46 | E17: 61.33% | F17: 29 | G17: 38.67%
A18: 109年11月19日 | B18: 專業核心訓練-創造力與邏輯思考力 | C18: 64 | D18: 44 | E18: 68.75% | F18: 20 | G18: 31.25%
A19: 109年11月20日 | B19: 管理訓練（CEDAW）-性別多元與障礙的交織 | C19: 63 | D19: 35 | E19: 55.56% | F19: 28 | G19: 44.44%
A20: 109年11月24日 | B20: 專業核心訓練-工作計畫與執行力 | C20: 40 | D20: 22 | E20: 55.00% | F20: 18 | G20: 45.00%
A21: 109年11月27日 | B21: 採購稽核精進業務執行成果及發現缺失 | C21: 35 | D21: 20 | E21: 57.14% | F21: 15 | G21: 42.86% | H21: 77 | I21: 49 | J21: 28
A22: 109年12月2日 | B22: 現代化的台灣應有的法治觀念 | C22: 83 | D22: 47 | E22: 56.63% | F22: 36 | G22: 43.37%
A23: 資料來源：人事室
A24: 備註： 1.性別資料使用：因本會業務性質為政府採購與公共工程業務之督導協調，須進用具工程、土木、水利、經建等專業背景人員，以目前工程專業人員仍以男性居多，又上開訓練係包含全會各種訓練課程（含業務訓練及管理訓練），爰參訓人員人數較不固定。 2.應用深化：上開統計可作為本會每年度規劃訓練課程及邀請同仁參訓之參考。 3.未進行國際性別統計比較原因說明：茲考量其他國家政府組織型態、功能任務迥異，爰未能就與本會業務性質與角色功能完全相同之國外政府機關進行國際比較。

Sheet 108年
A1: 108年本會辦理教育訓練性別比例一覽表
G2: 表13
A3: 演講日期 | B3: 演講主題 | C3: 參加人數 | H3: 性平課程 | I3: 男 | J3: 女
C4: 總人數 | D4: 男 | E4: 比例 | F4: 女 | G4: 比例 | H4: =SUM(H5:H38) -> 407 | I4: =SUM(I5:I38) -> 233 | J4: =SUM(J5:J38) -> 174
A5: 108年2月13日 | B5: 英國公共工程審議制度探討 | C5: 37 | D5: =SUM(C5-F5) -> 30 | E5: =SUM(D5/C5) -> 81.08% | F5: 7 | G5: =SUM(F5/C5) -> 18.92%
A6: 108年3月26日 | B6: 員工協助方案說明會 | C6: 56 | D6: =SUM(C6-F6) -> 26 | E6: 46.43% | F6: 30 | G6: 53.57%
A7: 108年3月27日 | B7: 人權教育影片欣賞「幸福路上」 | C7: 31 | D7: =SUM(C7-F7) -> 16 | E7: 51.61% | F7: 15 | G7: 48.39% | H7: 31 | I7: 16 | J7: 15
A8: 108年4月19日 | B8: 人權新思維，政府有作為 | C8: 38 | D8: =SUM(C8-F8) -> 23 | E8: 60.53% | F8: 15 | G8: 39.47%
A9: 108年4月24日 | B9: EAP宣導說明會 | C9: 43 | D9: =SUM(C9-F9) -> 29 | E9: 67.44% | F9: 14 | G9: 32.56%
A10: 108年5月8日 | B10: 108年性別主流化教育訓練「建築與女性主義」 | C10: 72 | D10: 35 | E10: 48.61% | F10: 37 | G10: 51.39% | H10: 72 | I10: 35 | J10: 37
A11: 108年5月21日 | B11: 資安威脅趨勢與案例分享 | C11: 38 | D11: =SUM(C11-F11) -> 23 | E11: 60.53% | F11: 15 | G11: 39.47%
A12: 108年6月5日 | B12: 108年度核心職能系列課程「卓越的簡報與表達技巧習班」 | C12: 56 | D12: 34 | E12: 60.71% | F12: 22 | G12: 39.29%
A13: 108年6月11日 | B13: 108年度核心職能系列課程「問題發現與決策技巧研習班」 | C13: 54 | D13: 34 | E13: 62.96% | F13: 20 | G13: 37.04%
A14: 108年6月19日 | B14: 108年度新進人員講習 | C14: 12 | D14: 6 | E14: 50.00% | F14: 6 | G14: 50.00%
A15: 108年6月20日 | B15: 美國政府標案經驗分享座談會 | C15: 22 | D15: 15 | E15: 68.18% | F15: 7 | G15: 31.82%
A16: 108年6月20日 | B16: ISO 27001 驗證標準要求 | C16: 6 | D16: 5 | E16: 83.33% | F16: 1 | G16: 16.67%
A17: 108年6月24日 | B17: 108年度核心職能系列課程「風險與危機管理研習班」 | C17: 44 | D17: 28 | E17: 63.64% | F17: 16 | G17: 36.36%
A18: 108年6月25日 | B18: 108年度核心職能系列課程「會議管理研習班」 | C18: 37 | D18: 28 | E18: 75.68% | F18: 9 | G18: 24.32%
A19: 108年6月25日 | B19: 資訊資產盤點實務 | C19: 4 | D19: 3 | E19: 75.00% | F19: 1 | G19: 25.00%
A20: 108年6月28日 | B20: EAP宣導講座「在工作中重現活力 —情緒與心理的安頓」 | C20: 38 | D20: 26 | E20: 68.42% | F20: 12 | G20: 31.58%
A21: 108年7月1日 | B21: 108年度核心職能系列課程「有效溝通研習班」 | C21: 48 | D21: 30 | E21: 62.50% | F21: 18 | G21: 37.50%
A22: 108年7月22日 | B22: 108年度性別主流化教育訓練「女孩別哭」 | C22: 35 | D22: 13 | E22: 37.14% | F22: 22 | G22: 62.86% | H22: 35 | I22: 13 | J22: 22
A23: 108年7月29日 | B23: 資安風險評鑑實務 | C23: 4 | D23: =SUM(C23-F23) -> 4 | E23: 100.00% | F23: 0 | G23: 0.00%
A24: 108年8月14日 | B24: 國家人權博物館參訪 | C24: 9 | D24: =SUM(C24-F24) -> 5 | E24: 55.56% | F24: 4 | G24: 44.44%
A25: 108年8月20日 | B25: 資訊安全宣導課程 | C25: 40 | D25: =SUM(C25-F25) -> 22 | E25: 55.00% | F25: 18 | G25: 45.00%
A26: 108年9月10日 | B26: 營運持續管理課程 | C26: 2 | D26: =SUM(C26-F26) -> 2 | E26: 100.00% | F26: 0 | G26: 0.00%
A27: 108年9月20日 | B27: 108年國家防災日全民防地震網路演練活動 | C27: 8 | D27: =SUM(C27-F27) -> 6 | E27: 75.00% | F27: 2 | G27: 25.00%
A28: 108年9月24日 | B28: 108年度全民國防教育訓練「暗算」 | C28: 63 | D28: 37 | E28: 58.73% | F28: 26 | G28: 41.27%
A29: 108年9月24日 | B29: 人工智慧＋物聯網颳起的資安風暴，如何自主管理？ | C29: 67 | D29: =SUM(C29-F29) -> 36 | E29: 53.73% | F29: 31 | G29: 46.27%
A30: 108年10月1日 | B30: EAP宣導講座「找到你的理財方程式」 | C30: 32 | D30: =SUM(C30-F30) -> 20 | E30: 62.50% | F30: 12 | G30: 37.50%
A31: 108年10月23日 | B31: CEDAW第11條工作平等權利 | C31: 99 | D31: =SUM(C31-F31) -> 62 | E31: 62.63% | F31: 37 | G31: 37.37% | H31: 99 | I31: 62 | J31: 37
A32: 108年10月30日 | B32: 108年國家政務研究班第13期心得分享 | C32: 21 | D32: =SUM(C32-F32) -> 11 | E32: 52.38% | F32: 10 | G32: 47.62%
A33: 108年11月4日 | B33: 108年「製作會議紀錄技巧分享」專題演講 | C33: 110 | D33: 67 | E33: 60.91% | F33: 43 | G33: 39.09%
A34: 108年11月7日 | B34: CEDAW第11條工作平等權利 | C34: 77 | D34: =SUM(C34-F34) -> 49 | E34: 63.64% | F34: 28 | G34: 36.36% | H34: 77 | I34: 49 | J34: 28
A35: 108年11月28日 | B35: 108年度全國民防教育訓練-保防微電影 | C35: 101 | D35: 60 | E35: 59.41% | F35: 41 | G35: 40.59%
A36: 108年11月28日 | B36: CEDAW第5條社會文化之改變與母性之保障 | C36: 93 | D36: =SUM(C36-F36) -> 58 | E36: 62.37% | F36: 35 | G36: 37.63% | H36: 93 | I36: 58 | J36: 35
A37: 108年11月19日 | B37: ISO 27001外部驗證前準備與應對說明 | C37: 38 | D37: =SUM(C37-F37) -> 12 | E37: 31.58% | F37: 26 | G37: 68.42%
A38: 108年12月18日 | B38: 108年度第一場業務交流讀書會「公共工程的省思與策進」 | C38: 73 | D38: =SUM(C38-F38) -> 41 | E38: 56.16% | F38: 32 | G38: 43.84%
A39: 資料來源：人事室
A40: 備註： 1.性別資料使用：因本會業務性質為政府採購與公共工程業務之督導協調，須進用具工程、土木、水利、經建等專業背景人員，以目前工程專業人員仍以男性居多，又上開訓練係包含全會各種訓練課程（含業務訓練及管理訓練），爰參訓人員人數較不固定。 2.應用深化：上開統計可作為本會每年度規劃訓練課程及邀請同仁參訓之參考。 3.未進行國際性別統計比較原因說明：茲考量其他國家政府組織型態、功能任務迥異，爰未能就與本會業務性質與角色功能完全相同之國外政府機關進行國際比較。

Sheet 107年
A1: 107年本會辦理教育訓練性別比例一覽表
G2: 表13
A3: 演講日期 | B3: 演講主題 | C3: 參加人數 | H3: 性平課程 | I3: 男 | J3: 女
C4: 總人數 | D4: 男 | E4: 比例 | F4: 女 | G4: 比例 | H4: =SUM(H5:H31) -> 233 | I4: =SUM(I5:I31) -> 134 | J4: =SUM(J5:J31) -> 99
A5: 2018-01-05 | B5: 第17屆公共工程金質獎觀摩會得獎工程觀摩會-「中庄調整池工程計畫-調整池工程(第一期)」 | C5: 29 | D5: 20 | E5: =SUM(D5/C5)*100% -> 68.97% | F5: 9 | G5: =SUM(F5/C5)*100% -> 31.03%
A6: 2018-01-10 | B6: 第17屆公共工程金質獎觀摩會得獎工程觀摩會-「國立臺灣體育運動大學臺中校區運動科學綜合大樓新建工程」 | C6: 41 | D6: 27 | E6: 65.85% | F6: 14 | G6: 34.15%
A7: 2018-01-12 | B7: 第17屆公共工程金質獎觀摩會得獎工程觀摩會-「高雄環狀輕軌捷運建設(第一階段)愛河高架橋(含東、西引道及C11車站)未施作完成工程」 | C7: 41 | D7: 30 | E7: 73.17% | F7: 11 | G7: 26.83%
A8: 2018-03-22 | B8: 107年度「閒置公共設施活化補助經費申請及管理系統操作」說明會 | C8: 31 | D8: 15 | E8: 48.39% | F8: 16 | G8: 51.61%
A9: 2018-04-03 | B9: 環境教育-南橫的美麗與哀愁(東段) | C9: 77 | D9: 43 | E9: 55.84% | F9: 34 | G9: 44.16%
A10: 2018-04-19 | B10: 全民國防教育訓練 | C10: 33 | D10: 21 | E10: 63.64% | F10: 12 | G10: 36.36%
A11: 2018-05-03 | B11: 從多元角度談水資源議題教育 | C11: 64 | D11: 39 | E11: 60.94% | F11: 25 | G11: 39.06%
A12: 2018-05-10 | B12: 「災後復建工程經費審議及執行資訊系統」提報模組強化功能之操作教育訓練 | C12: 57 | D12: 42 | E12: 73.68% | F12: 15 | G12: 26.32%
A13: 2018-06-15 | B13: 員工協助方案專題演講-飲食保健密碼 | C13: 24 | D13: 13 | E13: =SUM(D13/C13)*100% -> 54.17% | F13: 11 | G13: =SUM(F13/C13)*100% -> 45.83%
A14: 2018-07-19 | B14: 性別主流化教育訓練-看見多元性別(第一場) | C14: 45 | D14: 26 | E14: 57.78% | F14: 19 | G14: 42.22% | H14: =C14 -> 45 | I14: =D14 -> 26 | J14: =F14 -> 19
A15: 2018-07-20 | B15: 性別主流化教育訓練-看見多元性別(第二場) | C15: 23 | D15: 9 | E15: 39.13% | F15: 14 | G15: 60.87% | H15: =C15 -> 23 | I15: =D15 -> 9 | J15: =F15 -> 14
A16: 2018-08-01 | B16: 環境教育影片觀賞-這一生，至少當一次傻瓜 | C16: 58 | D16: 29 | E16: 50.00% | F16: 29 | G16: 50.00%
A17: 2018-08-10 | B17: 落實兩公約於人權之保障 | C17: 132 | D17: 79 | E17: 59.85% | F17: 53 | G17: 40.15% | H17: =C17 -> 132 | I17: =D17 -> 79 | J17: =F17 -> 53
A18: 2018-08-17 | B18: 臺灣新住民文化介紹 | C18: 107 | D18: 59 | E18: 55.14% | F18: 48 | G18: 44.86%
A19: 2018-08-31 | B19: 社會安定計畫 | C19: 146 | D19: 88 | E19: 60.27% | F19: 58 | G19: 39.73%
A20: 2018-09-05 | B20: 環境教育影片欣賞-咖非正義 | C20: 88 | D20: 54 | E20: 61.36% | F20: 34 | G20: 38.64%
A21: 2018-09-05 | B21: 公務員應具備之人權與法治概念 | C21: 155 | D21: 95 | E21: 61.29% | F21: 60 | G21: 38.71%
A22: 2018-09-10 | B22: 員工面對組織變革之因應與壓力調適 | C22: 35 | D22: 21 | E22: 60.00% | F22: 14 | G22: 40.00%
A23: 2018-09-28 | B23: 107年高階領導研究班第11期心得分享 | C23: 24 | D23: 18 | E23: 75.00% | F23: 6 | G23: 25.00%
A24: 2018-10-09 | B24: 聘僱人員離職儲金與勞工退休金制度說明會 | C24: 25 | D24: 5 | E24: 20.00% | F24: 20 | G24: 80.00%
A25: 2018-10-30 | B25: 突破與創新-建築生產履歷專題演講 | C25: 33 | D25: 26 | E25: 78.79% | F25: 7 | G25: 21.21%
A26: 2018-10-30 | B26: 近期資訊安全暨個資事件案例及內稽發現等事項分享 | C26: 22 | D26: 13 | E26: 59.09% | F26: 9 | G26: 40.91%
A27: 2018-10-31 | B27: 生態檢核機制推動及案例分享交流會 | C27: 62 | D27: 40 | E27: 64.52% | F27: 22 | G27: 35.48%
A28: 2018-11-20 | B28: 107年組團出國專題研究循環經濟班心得分享 | C28: 14 | D28: 11 | E28: 78.57% | F28: 3 | G28: 21.43%
A29: 2018-11-27 | B29: 電子書及大數據應用研習班心得分享 | C29: 10 | D29: 6 | E29: 60.00% | F29: 4 | G29: 40.00%
A30: 2018-12-10 | B30: 工程類公開取得電子報價單採購機制（含線上繳納押標金）教育訓練 | C30: 70 | D30: 35 | E30: 50.00% | F30: 35 | G30: 50.00%
A31: 2018-10-27 | B31: 多元性別與法律 | C31: 33 | D31: 20 | E31: 60.61% | F31: 13 | G31: 39.39% | H31: =C31 -> 33 | I31: =D31 -> 20 | J31: =F31 -> 13
A32: 資料來源：人事室
A33: 備註： 1.性別資料使用：因本會業務性質為政府採購與公共工程業務之督導協調，須進用具工程、土木、水利、經建等專業背景人員，以目前工程專業人員仍以男性居多，又上開訓練係包含全會各種訓練課程（含業務訓練及管理訓練），爰參訓人員人數較不固定。 2.應用深化：上開統計可作為本會每年度規劃訓練課程及邀請同仁參訓之參考。 3.未進行國際性別統計比較原因說明：茲考量其他國家政府組織型態、功能任務迥異，爰未能就與本會業務性質與角色功能完全相同之國外政府機關進行國際比較。

Sheet 106年
A1: 106年本會辦理教育訓練性別比例一覽表
G2: 表13
A3: 演講日期 | B3: 演講主題 | C3: 參加人數 | H3: 性平課程 | I3: 男 | J3: 女
C4: 總人數 | D4: 男 | E4: 比例 | F4: 女 | G4: 比例 | H4: =SUM(H5:H17) -> 206 | I4: =SUM(I5:I17) -> 118 | J4: =SUM(J5:J17) -> 88
A5: 2017-01-26 | B5: 「2017年金改革方案(草案)」說明會 | C5: 32 | D5: 20 | E5: =D5/C5 -> 62.50% | F5: =SUM($C5-$D5) -> 12 | G5: =F5/C5 -> 37.50%
A6: 2017-02-08 | B6: 106年行政院及所屬各機關中高階公務人員短期密集專業英語進修國外課程心得分享會 | C6: 11 | D6: 8 | E6: =D6/C6 -> 72.73% | F6: 3 | G6: =F6/C6 -> 27.27%
A7: 2017-03-24 | B7: 國民旅遊卡制度修正說明會 | C7: 32 | D7: 20 | E7: 62.50% | F7: 12 | G7: 37.50%
A8: 2017-04-11 | B8: 全民國防教育訓練 | C8: 26 | D8: 15 | E8: 57.69% | F8: 11 | G8: 42.31%
A9: 2017-04-21 | B9: 分級醫療宣導說明會 | C9: 29 | D9: 16 | E9: 55.17% | F9: 13 | G9: 44.83% | H9: =C9 -> 29 | I9: =D9 -> 16 | J9: =F9 -> 13
A10: 2017-05-11 | B10: 常見駭客攻擊手法與資訊安全實例 | C10: 30 | D10: 20 | E10: 66.67% | F10: 10 | G10: 33.33%
A11: 2017-06-26 | B11: 106年性別主流化訓練課程「野蠻爺爺」影片賞析 | C11: 54 | D11: 27 | E11: 50.00% | F11: 27 | G11: 50.00% | H11: =C11 -> 54 | I11: =D11 -> 27 | J11: =F11 -> 27
A12: 2017-07-26 | B12: 106年性別主流化訓練課程「關懷社區『愛』是行動」（家庭暴力防治）影片賞析 | C12: 78 | D12: 51 | E12: 65.38% | F12: 27 | G12: 34.62% | H12: =C12 -> 78 | I12: =D12 -> 51 | J12: =F12 -> 27
A13: 2017-08-28 | B13: 公務人員退休資遣撫卹法說明會 | C13: 55 | D13: 40 | E13: 72.73% | F13: 15 | G13: 27.27%
A14: 2017-09-14 | B14: 人權教育-從財產繼承談男女平權 | C14: 45 | D14: 24 | E14: 53.33% | F14: 21 | G14: 46.67% | H14: =C14 -> 45 | I14: =D14 -> 24 | J14: =F14 -> 21
A15: 2017-09-21 | B15: 106年國家防災日全民地震網路演練活動 | C15: 19 | D15: 9 | E15: 47.37% | F15: 10 | G15: 52.63%
A16: 2017-09-27 | B16: 106年環境教育「農夫與他的田-尖山湖夢田、縣道193的野菜田」 | C16: 76 | D16: 39 | E16: =D16/C16 -> 51.32% | F16: 37 | G16: =F16/C16 -> 48.68%
A17: 2017-10-17 | B17: 近期資訊安全事件及個人資料保護案例探討 | C17: 27 | D17: 11 | E17: 40.74% | F17: 16 | G17: 59.26%
A18: 資料來源：人事室
A19: 原備註：本會業務性質，工程專業人員以男性居多。
A20: 備註： 1.性別資料使用：因本會業務性質為政府採購與公共工程業務之督導協調，須進用具工程、土木、水利、經建等專業背景人員，以目前工程專業人員仍以男性居多，又上開訓練係包含全會各種訓練課程（含業務訓練及管理訓練），爰參訓人員人數較不固定。 2.應用深化：上開統計可作為本會每年度規劃訓練課程及邀請同仁參訓之參考。 3.未進行國際性別統計比較原因說明：茲考量其他國家政府組織型態、功能任務迥異，爰未能就與本會業務性質與角色功能完全相同之國外政府機關進行國際比較。

Sheet 105年
A1: 105年本會辦理教育訓練性別比例一覽表
G2: 表13
A3: 演講日期 | B3: 演講主題 | C3: 參加人數 | H3: 性平課程 | I3: 男 | J3: 女
C4: 總人數 | D4: 男 | E4: 比例 | F4: 女 | G4: 比例 | H4: =SUM(H5:H37) -> 229 | I4: =SUM(I5:I37) -> 138 | J4: =SUM(J5:J37) -> 91
A5: 105年1月6日 | B5: 新北市國民運動中心興建工程之執行經驗分享 | C5: 90 | D5: 65 | E5: =$D5/$C5 -> 72.22% | F5: =SUM($C5-$D5) -> 25 | G5: =$F5/$C5 -> 27.78%
A6: 105年1月6日 | B6: 行政院模範公務人員工作經驗分享會 | C6: 33 | D6: 22 | E6: 66.67% | F6: 11 | G6: 33.33%
A7: 105年1月14日 | B7: 高雄捷運R11永久站結構施工及地盤監測 | C7: 72 | D7: 59 | E7: 81.94% | F7: 13 | G7: 18.06%
A8: 105年1月28日 | B8: 重大公共建設計畫管理系統填報須知教育訓練課程 | C8: 88 | D8: 63 | E8: 71.59% | F8: 25 | G8: 28.41%
A9: 105年2月1日 | B9: 「海綿城市」系列專題演講第3場-「實現透水城市-新北市執行經驗」 | C9: 80 | D9: 55 | E9: 68.75% | F9: 25 | G9: 31.25%
A10: 105年2月18日 | B10: 公共工程標案管理系統管理與運用教育訓練課程 | C10: 55 | D10: 38 | E10: 69.09% | F10: 17 | G10: 30.91%
A11: 105年3月2日 | B11: 自動體外心臟電擊去顫器(AED)教育訓練及實作(第1期) | C11: 47 | D11: 33 | E11: 70.21% | F11: 14 | G11: 29.79%
A12: 105年3月30日 | B12: 技師執行業務所涉及之法律責任(民、刑事及行政) | C12: 52 | D12: 39 | E12: 75.00% | F12: 13 | G12: 25.00%
A13: 105年4月21日 | B13: 一次用品減量與綠背包旅行去 | C13: 55 | D13: 34 | E13: 61.82% | F13: 21 | G13: 38.18%
A14: 105年5月9日 | B14: 中鼎之國際經驗分享 | C14: 46 | D14: 32 | E14: 69.57% | F14: 14 | G14: 30.43%
A15: 105年5月17日 | B15: 好EQ好心情～情緒與壓力調適 | C15: 29 | D15: 17 | E15: 58.62% | F15: 12 | G15: 41.38% | H15: =C15 -> 29 | I15: =D15 -> 17 | J15: =F15 -> 12
A16: 105年5月31日 | B16: 智慧採購工作坊 | C16: 39 | D16: 22 | E16: 56.41% | F16: 17 | G16: 43.59%
A17: 105年6月7日 | B17: 如何辦好公共建築工程技術服務採購研討會(東區) | C17: 84 | D17: 61 | E17: 72.62% | F17: 23 | G17: 27.38%
A18: 105年6月20日 | B18: 工程會參與推動共同管道業務及建議報告教育訓練講習 | C18: 25 | D18: 22 | E18: 88.00% | F18: 3 | G18: 12.00%
A19: 105年6月22日 | B19: 臺灣生態的美麗與哀愁 | C19: 66 | D19: 41 | E19: 62.12% | F19: 25 | G19: 37.88%
A20: 105年6月22日 | B20: 如何辦好公共建築工程技術服務採購研討會(中區) | C20: 398 | D20: 239 | E20: 60.05% | F20: 159 | G20: 39.95%
A21: 105年6月24日 | B21: 行動生活停看聽－達離勒索病毒 | C21: 19 | D21: 13 | E21: 68.42% | F21: 6 | G21: 31.58%
A22: 105年7月18日 | B22: 如何辦好公共建築工程技術服務採購研討會(南區) | C22: 270 | D22: 185 | E22: 68.52% | F22: 85 | G22: 31.48%
A23: 105年7月19日 | B23: 如何辦好公共建築工程技術服務採購研討會(北區) | C23: 258 | D23: 149 | E23: 57.75% | F23: 109 | G23: 42.25%
A24: 105年8月24日 | B24: 公務人員行政中立及公務倫理 | C24: 23 | D24: 9 | E24: 39.13% | F24: 14 | G24: 60.87%
A25: 105年8月24日 | B25: 災害示警公開資料平台(含災害情資網)之發展與應用 | C25: 80 | D25: 59 | E25: 73.75% | F25: 21 | G25: 26.25%
A26: 105年8月26日 | B26: 105年度採購稽核業務研習會(北區) | C26: 253 | D26: 121 | E26: 47.83% | F26: 132 | G26: 52.17%
A27: 105年9月6日 | B27: 「在地出發 邁向平等」特展系列活動(第1場次) | C27: 37 | D27: 22 | E27: 59.46% | F27: 15 | G27: 40.54% | H27: =C27 -> 37 | I27: =D27 -> 22 | J27: =F27 -> 15
A28: 105年9月9日 | B28: 105年度採購稽核業務研習會(南區) | C28: 92 | D28: 44 | E28: 47.83% | F28: 48 | G28: 52.17%
A29: 105年9月9日 | B29: 「在地出發 邁向平等」特展系列活動(第2場次) | C29: 35 | D29: 23 | E29: 65.71% | F29: 12 | G29: 34.29% | H29: =C29 -> 35 | I29: =D29 -> 23 | J29: =F29 -> 12
A30: 105年9月30日 | B30: 「精進公共工程進度管理制度」教育訓練-北區第1場 | C30: 120 | D30: 76 | E30: 63.33% | F30: 44 | G30: 36.67%
A31: 105年10月26日 | B31: 「105年度性別暴力防治影像巡迴座談」之「雛妓SARA」 | C31: 46 | D31: 26 | E31: 56.52% | F31: 20 | G31: 43.48% | H31: =C31 -> 46 | I31: 26 | J31: 20
A32: 105年10月28日 | B32: 配合個人資料保護法修正，你要注意甚麼？ | C32: 20 | D32: 10 | E32: 50.00% | F32: 10 | G32: 50.00%
A33: 105年11月16日 | B33: 全民國防教育訓練 | C33: 32 | D33: 15 | E33: 46.88% | F33: 17 | G33: 53.13%
A34: 105年11月25日 | B34: 「105年度性別暴力防治影像巡迴座談」之「希望：為愛重生」 | C34: 51 | D34: 33 | E34: 64.71% | F34: 18 | G34: 35.29% | H34: =C34 -> 51 | I34: 33 | J34: 18
A35: 105年12月1日 | B35: 人權之價值與現況－說兩公約、CEDAW及CRPD | C35: 31 | D35: 17 | E35: 54.84% | F35: 14 | G35: 45.16% | H35: =C35 -> 31 | I35: 17 | J35: 14
A36: 105年12月22日 | B36: 兩公約教育訓練 | C36: 93 | D36: 50 | E36: 53.76% | F36: 43 | G36: 46.24%
A37: 105年12月27日 | B37: 淡海輕軌核心機電系統後續擴充之案例研討 | C37: 59 | D37: 48 | E37: 81.36% | F37: 11 | G37: 18.64%
A38: 資料來源：人事室
A39: 備註：本會業務性質，工程專業人員以男性居多。

Sheet 104年
A1: 104年本會辦理教育訓練性別比例一覽表
G2: 表13
A3: 演講日期 | B3: 演講主題 | C3: 參加人數 | H3: 性平課程 | I3: 男 | J3: 女
C4: 總人數 | D4: 男 | E4: 比例 | F4: 女 | G4: 比例 | H4: =SUM(H5:H28) -> 203 | I4: =SUM(I5:I28) -> 122 | J4: =SUM(J5:J28) -> 81
A5: 104年4月2日 | B5: 土木工程與環境 | C5: 53 | D5: 42 | E5: =D5/C5 -> 79.25% | F5: 11 | G5: =F5/C5 -> 20.75%
A6: 104年4月7日 | B6: 心靈SPA-談情緒能量調節與內觀舒活減壓演講 | C6: 41 | D6: 20 | E6: 48.78% | F6: 21 | G6: 51.22% | H6: =C6 -> 41 | I6: =D6 -> 20 | J6: =F6 -> 21
A7: 104年4月10日 | B7: 行政院公共工程委員會Facebook粉絲專頁營運規範及系統操作教育訓練 | C7: 37 | D7: 25 | E7: 67.57% | F7: 12 | G7: 32.43%
A8: 104年5月6日 | B8: 餐桌上的環境危機 | C8: 88 | D8: 54 | E8: 61.36% | F8: 34 | G8: 38.64%
A9: 104年5月10日 | B9: 重大工程開工要件注意事項 | C9: 20 | D9: 15 | E9: 75.00% | F9: 5 | G9: 25.00%
A10: 104年5月22日 | B10: 從個案故事看工程倫理 | C10: 97 | D10: 62 | E10: 63.92% | F10: 35 | G10: 36.08%
A11: 104年5月29日 | B11: 參訪國定古蹟監察院落成百年特展 | C11: 35 | D11: 20 | E11: 57.14% | F11: 15 | G11: 42.86%
A12: 104年6月4日 | B12: 你個資保護我的地雷？不可不知的個資法規定與實務 | C12: 51 | D12: 28 | E12: 54.90% | F12: 23 | G12: 45.10%
A13: 104年6月10日 | B13: 個資法規與實務 | C13: 51 | D13: 32 | E13: 62.75% | F13: 19 | G13: 37.25%
A14: 104年6月17日 | B14: 消費者保護法簡介 | C14: 38 | D14: 23 | E14: 60.53% | F14: 15 | G14: 39.47%
A15: 104年6月17日 | B15: 性別主流化數位學習 | C15: 76 | D15: 44 | E15: 57.89% | F15: 32 | G15: 42.11% | H15: =C15 -> 76 | I15: =D15 -> 44 | J15: =F15 -> 32
A16: 104年6月30日 | B16: 行動裝置與電腦使用安全 | C16: 42 | D16: 24 | E16: 57.14% | F16: 18 | G16: 42.86%
A17: 104年7月2日 | B17: 當前我國安全情勢與因應之道 | C17: 29 | D17: 18 | E17: 62.07% | F17: 11 | G17: 37.93%
A18: 104年7月17日 | B18: 工程問題大小事 | C18: 30 | D18: 16 | E18: 53.33% | F18: 14 | G18: 46.67%
A19: 104年8月31日 | B19: 公務倫理與核心價值 | C19: 29 | D19: 11 | E19: 37.93% | F19: =C19-D19 -> 18 | G19: 62.07%
A20: 104年8月31日 | B20: 海綿城市 | C20: 57 | D20: 36 | E20: 63.16% | F20: 21 | G20: 36.84%
A21: 104年9月8日 | B21: 我是馬拉拉電影賞析 | C21: 43 | D21: 31 | E21: 72.09% | F21: 12 | G21: 27.91% | H21: =C21 -> 43 | I21: =D21 -> 31 | J21: =F21 -> 12
A22: 104年9月10日 | B22: 我是馬拉拉電影賞析 | C22: 43 | D22: 27 | E22: 62.79% | F22: 16 | G22: 37.21% | H22: =C22 -> 43 | I22: =D22 -> 27 | J22: =F22 -> 16
A23: 104年10月5日 | B23: 淡江大橋的工程美學 | C23: 52 | D23: 37 | E23: 71.15% | F23: =C23-D23 -> 15 | G23: 28.85%
A24: 104年10月23日 | B24: 104年模範採購人員及採購案件頒獎典禮 | C24: 72 | D24: 48 | E24: 66.67% | F24: =SUM($C24-$D24) -> 24 | G24: 33.33%
A25: 104年11月11日 | B25: 104年高階領導研究班出國短期研習心得報告 | C25: 24 | D25: 16 | E25: 66.67% | F25: =SUM($C25-$D25) -> 8 | G25: 33.33%
A26: 104年11月25日 | B26: 104年採購稽核小組績效考核講習會(上午場) | C26: 32 | D26: 16 | E26: 50.00% | F26: =SUM($C26-$D26) -> 16 | G26: 50.00%
A27: 104年11月25日 | B27: 104年採購稽核小組績效考核講習會(下午場) | C27: 49 | D27: 23 | E27: 46.94% | F27: =SUM($C27-$D27) -> 26 | G27: 53.06%
A28: 104年12月29日 | B28: 統包工程實務教育訓練 | C28: 92 | D28: 61 | E28: 66.30% | F28: =SUM($C28-$D28) -> 31 | G28: 33.70%
A29: 資料來源：人事室
A30: 備註：本會業務性質，工程專業人員以男性居多。

Sheet 103年
A1: 103年本會辦理教育訓練性別比例一覽表
G2: 表13
A3: 演講日期 | B3: 演講主題 | C3: 參加人數 | H3: 性平課程 | I3: 男 | J3: 女
C4: 總人數 | D4: 男 | E4: 比例 | F4: 女 | G4: 比例 | H4: =SUM(H5:H38) -> 226 | I4: =SUM(I5:I38) -> 147 | J4: =SUM(J5:J38) -> 79
A5: 103年4月2日 | B5: 自由經濟示範區政策內涵 | C5: 33 | D5: 18 | E5: =D5/C5 -> 54.55% | F5: =C5-D5 -> 15 | G5: =F5/C5 -> 45.45%
A6: 103年4月11日 | B6: Bim帶給公共工程的機會與挑戰 | C6: 51 | D6: 39 | E6: =D6/C6 -> 76.47% | F6: =C6-D6 -> 12 | G6: =F6/C6 -> 23.53%
A7: 103年4月15日 | B7: 工程倫理概述與案例解析 | C7: 51 | D7: 36 | E7: 70.59% | F7: 15 | G7: 29.41%
A8: 103年4月16日 | B8: 邁向健康心世界-談壓力調適 | C8: 13 | D8: 4 | E8: 30.77% | F8: 9 | G8: 69.23%
A9: 103年4月23日 | B9: 財團法人全國認證基金會之實驗室訪查程序與重點專題演講 | C9: 25 | D9: 15 | E9: 60.00% | F9: 10 | G9: 40.00%
A10: 103年5月7日 | B10: 性別主流化訓練-CEDAW導教育課程 | C10: 50 | D10: 33 | E10: 66.00% | F10: 17 | G10: 34.00% | H10: =C10 -> 50 | I10: 33 | J10: =F10 -> 17
A11: 103年5月15日 | B11: 「性別與千禧年發展目標在臺灣」特展系列活動 | C11: 52 | D11: 31 | E11: 59.62% | F11: 21 | G11: 40.38% | H11: 52 | I11: 31 | J11: =F11 -> 21
A12: 103年5月16日 | B12: 「性別與千禧年發展目標在臺灣」特展系列活動 | C12: 44 | D12: 31 | E12: 70.45% | F12: 13 | G12: 29.55% | H12: 44 | I12: 31 | J12: =F12 -> 13
A13: 103年5月19日 | B13: 天然災害防護業務-防火防震 | C13: 29 | D13: 20 | E13: 68.97% | F13: 9 | G13: 31.03%
A14: 103年5月22日 | B14: 資安趨勢分析與行動裝置安全 | C14: 11 | D14: 5 | E14: 45.45% | F14: 6 | G14: 54.55%
A15: 103年6月11日 | B15: 水源面面觀 | C15: 101 | D15: 67 | E15: 66.34% | F15: 34 | G15: 33.66%
A16: 103年6月18日 | B16: 個資法關鍵課題：年​度回顧與2014發展​趨勢 | C16: 20 | D16: 11 | E16: 55.00% | F16: 9 | G16: 45.00%
A17: 103年6月19日 | B17: PLSQL開發工具應用-第1～2期 | C17: 3 | D17: 3 | E17: 100.00% | F17: 0 | G17: 0.00%
A18: 103年6月20日 | B18: PLSQL開發工具應用-第3～4期 | C18: 4 | D18: 4 | E18: 100.00% | F18: 0 | G18: 0.00%
A19: 103年6月24～25日 | B19: ORACLE資料庫管理應用第1～4期 | C19: 3 | D19: 3 | E19: 100.00% | F19: 0 | G19: 0.00%
A20: 103年6月26日 | B20: 公務倫理與行政中立 | C20: 25 | D20: 13 | E20: 52.00% | F20: 12 | G20: 48.00%
A21: 103年7月11日 | B21: 「跨太平洋夥伴協定、區域全面經濟夥伴協定政府採購及跨境服務貿易-工程技術業」說明會 | C21: 26 | D21: 16 | E21: 61.54% | F21: 10 | G21: 38.46%
A22: 103年7月25日 | B22: 102年中高階國際經貿談判訴訟人才培用班心得分享 | C22: 28 | D22: 23 | E22: 82.14% | F22: 5 | G22: 17.86%
A23: 103年7月25日 | B23: 性別主流化訓練-CEDAW導教育課程 | C23: 29 | D23: 23 | E23: 79.31% | F23: 6 | G23: 20.69% | H23: =C23 -> 29 | I23: =D23 -> 23 | J23: =F23 -> 6
A24: 103年7月29日 | B24: 資訊時代應建立之資安風險及管理思維 | C24: 26 | D24: 22 | E24: 84.62% | F24: 4 | G24: 15.38%
A25: 103年8月7日 | B25: 全民國防教育-兩岸新形式下凝聚全民國防共識 | C25: 22 | D25: 13 | E25: 59.09% | F25: 9 | G25: 40.91%
A26: 103年8月21日 | B26: 社交工程與個人電腦安全防護 | C26: 21 | D26: 11 | E26: 52.38% | F26: 10 | G26: 47.62%
A27: 103年8月22日 | B27: 創新服務與管理 | C27: 27 | D27: 17 | E27: 62.96% | F27: 10 | G27: 37.04%
A28: 103年8月26日 | B28: 政府採購與民法之關係 | C28: 30 | D28: 21 | E28: 70.00% | F28: 9 | G28: 30.00%
A29: 103年9月3日 | B29: 氣候變遷下的危機與轉機 | C29: 102 | D29: 61 | E29: 59.80% | F29: 41 | G29: 40.20%
A30: 103年9月15日 | B30: 電子商務法律停看聽 | C30: 20 | D30: 9 | E30: 45.00% | F30: 11 | G30: 55.00%
A31: 103年10月15日 | B31: 公共工程指定認證項目混凝土與瀝青混合料類試驗作業事項 | C31: 23 | D31: 13 | E31: 56.52% | F31: 10 | G31: 43.48%
A32: 103年10月20日 | B32: 「平甩防疫，強健身心」健康講座 | C32: 71 | D32: 44 | E32: 61.97% | F32: 27 | G32: 38.03%
A33: 103年10月23日 | B33: 性別主流化CEDAW性別平等政策綱領 | C33: 51 | D33: 29 | E33: 56.86% | F33: 22 | G33: 43.14% | H33: =C33 -> 51 | I33: =D33 -> 29 | J33: =F33 -> 22
A34: 103年10月30日 | B34: 公文管理系統操作說明會 | C34: 12 | D34: 10 | E34: 83.33% | F34: 2 | G34: 16.67%
A35: 103年11月4日 | B35: 「捷運松山線施工障礙排除案例」專題演講 | C35: 43 | D35: 11 | E35: 25.58% | F35: 32 | G35: 74.42%
A36: 103年11月18日 | B36: 政府採購之工程保險 | C36: 19 | D36: 8 | E36: 42.11% | F36: 11 | G36: 57.89%
A37: 103年11月26日 | B37: 交通產業的創意商機 | C37: 51 | D37: 34 | E37: 66.67% | F37: 17 | G37: 33.33%
A38: 103年12月3日 | B38: 重大公共建設完工啟用期程評估方法及應用作業模式 | C38: 33 | D38: 25 | E38: =D38/C38 -> 75.76% | F38: 8 | G38: =F38/C38 -> 24.24%
A39: 資料來源：人事室
A40: 備註：本會業務性質，工程專業人員以男性居多。
